fUSD/lending_fUSD_20250814
["ID","MTS","AMOUNT","RATE_DAILY","PERIOD"]
[379188353,1755180634300,-339.74939198,0.0002555,2]
[379188355,1755180634310,-4633.0,0.00025553,2]
[379188357,1755180634320,-1000.0,0.00025595,2]
[379188359,1755180634330,-207.4,0.00025651,2]
[379188361,1755180634340,-838.14897401,0.00025664,2]
[379188363,1755180634350,-383.38692857,0.00025665,2]
[379188365,1755180634359,-220.87835682,0.00025686,2]
[379188367,1755180634369,-1000.0,0.00025706,2]
[379188369,1755180634380,-172.23,0.00025726,2]
[379188371,1755180634390,-1000.0,0.00025752,2]
[379188373,1755180634399,-1000.0,0.00025753,2]
[379188375,1755180634409,-7747.01891237,0.00025755,2]
[379188377,1755180634419,-300.71,0.00025767,2]
[379188379,1755180634430,-2351.0,0.00025767,2]
[379188381,1755180634439,-22500.8237614,0.00025776,2]
[379188383,1755180634448,-427.02446515,0.00025779,2]
[379188385,1755180634458,-887.0,0.000258,2]
[379188387,1755180634468,-1000.0,0.0002581,2]
[379188389,1755180634477,-838.14897401,0.00025822,2]
[379188391,1755180634487,-159.83472269,0.00025885,2]
[379188394,1755180634497,-492.0,0.0002589,7]
[379188396,1755180634506,-470.66200174,0.00025894,2]
[379188398,1755180634516,-11250.4118807,0.00025909,2]
[379188400,1755180634525,-1000.0,0.00025915,2]
[379188402,1755180634536,-6695.96582749,0.00025919,2]
[379188404,1755180634546,-220.8783568,0.00025926,2]
[379188405,1755180634556,-1000.0,0.00025957,2]
[379188407,1755180634566,-1000.0,0.00025962,2]
[379188410,1755180634577,-150.0,0.00025965,2]
[379188411,1755180634587,-150.0,0.00025992,2]
[379188414,1755180634596,-7402.95,0.00025999,2]
[379188415,1755180634606,-1000.0,0.00026003,2]
[379188417,1755180634617,-514.29953832,0.00026009,2]
[379188420,1755180634636,-1000.0,0.00026011,2]
[379188422,1755180634646,-7747.01891237,0.00026035,2]
[379188423,1755180634656,-413.01332326,0.00026092,2]
[379188425,1755180634667,-557.93707491,0.00026124,2]
[379188427,1755180634681,-220.8783568,0.00026166,2]
[379188429,1755180634691,-838.14897401,0.00026183,2]
[379188432,1755180634702,-601.57461149,0.00026239,2]
[379188434,1755180634711,-150.0,0.00026297,2]
[379188436,1755180634722,-1000.0,0.00026307,2]
[379188438,1755180634732,-7747.01891237,0.00026314,2]
[379188440,1755180634741,-888.6,0.00026331,2]
[379188442,1755180634752,-645.21214808,0.00026354,2]
[379188444,1755180634762,-837.04,0.00026365,7]
[379188445,1755180634771,-220.8783568,0.00026406,2]
[379188446,1755180634782,-11250.4118807,0.00026414,2]
[379188447,1755180634791,-6695.96582749,0.00026424,2]
[379188449,1755180634801,-1000.0,0.00026447,2]
[379188450,1755180634810,-1346.99,0.00026449,120]
[379188451,1755180634819,-165.77,0.0002645,2]
[379188452,1755180634829,-150.0,0.00026453,2]
[379188453,1755180634839,-19335.4827527,0.00026467,2]
[379188454,1755180634849,-688.84968466,0.00026468,2]
[379188455,1755180634859,-45001.6475229,0.00026477,2]
[379188456,1755180634870,-58006.448258,0.00026477,2]
[379188457,1755180634880,-150.0,0.00026484,2]
[379188458,1755180634890,-151.0,0.00026487,2]
[379188459,1755180634900,-300.0,0.00026487,2]
[379188460,1755180634910,-160.0,0.00026487,2]
[379188461,1755180634929,-250.0,0.00026487,2]
[379188462,1755180634942,-209.40437684,0.00026487,2]
[379188463,1755180634953,-250.0,0.00026487,2]
[379188464,1755180634963,-250.0,0.00026487,2]
[379188465,1755180634973,-250.0,0.00026487,2]
[379188467,1755180634983,-250.0,0.00026487,2]
[379188469,1755180634993,-250.0,0.00026487,2]
[379188471,1755180635003,-250.0,0.00026487,2]
[379188473,1755180635013,-250.0,0.00026487,2]
[379188475,1755180635022,-250.0,0.00026487,2]
[379188477,1755180635032,-250.0,0.00026487,2]
[379188479,1755180635042,-200.0,0.00026487,2]
[379188481,1755180635052,-200.0,0.00026487,2]
[379188483,1755180635061,-250.0,0.00026487,2]
[379188485,1755180635071,-200.0,0.00026487,2]
[379188487,1755180635081,-200.0,0.00026487,2]
[379188489,1755180635091,-200.0,0.00026487,2]
[379188491,1755180635102,-151.0,0.00026487,2]
[379188493,1755180635112,-200.0,0.00026487,2]
[379188495,1755180635122,-2787.96377754,0.00026487,2]
[379188497,1755180635132,-200.0,0.00026487,2]
[379188499,1755180635141,-200.0,0.00026487,2]
[379188501,1755180635151,-200.0,0.00026487,2]
[379188503,1755180635161,-200.0,0.00026487,2]
[379188505,1755180635174,-600.0,0.00026487,2]
[379188507,1755180635185,-1000.0,0.00026487,2]
[379188509,1755180635195,-200.0,0.00026487,2]
[379188511,1755180635205,-1000.0,0.00026487,2]
[379188513,1755180635215,-200.0,0.00026487,2]
[379188515,1755180635224,-1000.0,0.00026487,2]
[379188517,1755180635235,-151.0,0.00026487,2]
[379188519,1755180635244,-200.0,0.00026487,2]
[379188521,1755180635255,-1000.0,0.00026487,2]
[379188523,1755180635264,-156.587,0.00026487,2]
[379188525,1755180635274,-169.95030453,0.00026487,2]
[379188527,1755180635284,-1000.0,0.00026487,2]
[379188529,1755180635294,-200.0,0.00026487,2]
[379188531,1755180635304,-1000.0,0.00026487,2]
[379188533,1755180635315,-200.0,0.00026487,2]
[379188535,1755180635325,-158.12459321,0.00026487,2]
[379188537,1755180635334,-1000.0,0.00026487,2]
[379188539,1755180635344,-277.35679052,0.00026487,2]
[379188541,1755180635354,-200.0,0.00026487,2]
[379188543,1755180635363,-3000.0,0.00026487,2]
[379188545,1755180635373,-1000.0,0.00026487,2]
[379188547,1755180635383,-3000.0,0.00026487,2]
[379188550,1755180635393,-200.0,0.00026487,2]
[379188551,1755180635402,-707.45366235,0.00026487,2]
[379188554,1755180635418,-292.54633765,0.00026487,2]
[379188556,1755180635430,-3000.0,0.00026487,2]
[379188558,1755180635441,-200.0,0.00026487,2]
[379188560,1755180635450,-1000.0,0.00026487,2]
[379188562,1755180635460,-3000.0,0.00026487,2]
[379188564,1755180635469,-1000.0,0.00026487,2]
[379188566,1755180635480,-3000.0,0.00026487,2]
[379188568,1755180635492,-200.0,0.00026487,2]
[379188570,1755180635502,-500.0,0.00026487,2]
[379188573,1755180635512,-500.0,0.00026487,2]
[379188575,1755180635521,-3000.0,0.00026487,2]
[379188577,1755180635531,-200.0,0.00026487,2]
[379188579,1755180635541,-500.0,0.00026487,2]
[379188581,1755180635551,-3000.0,0.00026487,2]
[379188583,1755180635561,-151.0,0.00026487,2]
[379188585,1755180635570,-3000.0,0.00026487,2]
[379188587,1755180635580,-500.0,0.00026487,2]
[379188589,1755180635589,-151.0,0.00026487,2]
[379188591,1755180635599,-3000.0,0.00026487,2]
[379188593,1755180635609,-500.0,0.00026487,2]
[379188596,1755180635619,-300.0,0.00026487,2]
[379188599,1755180635635,-500.0,0.00026487,2]
[379188602,1755180635645,-151.0,0.00026487,2]
[379188606,1755180635659,-3000.0,0.00026487,2]
[379188608,1755180635674,-500.0,0.00026487,2]
[379188610,1755180635685,-151.0,0.00026487,2]
[379188612,1755180635695,-178.96294616,0.00026487,2]
[379188614,1755180635707,-300.0,0.00026487,2]
[379188616,1755180635718,-500.0,0.00026487,2]
[379188618,1755180635727,-200.76036667,0.00026487,2]
[379188620,1755180635737,-300.0,0.00026487,2]
[379188622,1755180635748,-500.0,0.00026487,2]
[379188624,1755180635758,-500.0,0.00026487,2]
[379188626,1755180635768,-300.0,0.00026487,2]
[379188628,1755180635778,-500.0,0.00026487,2]
[379188630,1755180635788,-500.0,0.00026487,2]
[379188632,1755180635799,-500.0,0.00026487,2]
[379188634,1755180635809,-282.56232004,0.00026487,2]
[379188636,1755180635819,-500.0,0.00026487,2]
[379188639,1755180635829,-500.0,0.00026487,2]
[379188641,1755180635838,-500.0,0.00026487,2]
[379188643,1755180635848,-500.0,0.00026487,2]
[379188645,1755180635858,-500.0,0.00026487,2]
[379188647,1755180635867,-500.0,0.00026487,2]
[379188649,1755180635877,-500.0,0.00026487,2]
[379188651,1755180635887,-500.0,0.00026487,2]
[379188653,1755180635896,-500.0,0.00026487,2]
[379188655,1755180635907,-151.0,0.00026487,2]
[379188657,1755180635916,-151.0,0.00026487,2]
[379188659,1755180635929,-151.0,0.00026487,2]
[379188661,1755180635940,-151.0,0.00026487,2]
[379188663,1755180635950,-151.0,0.00026487,2]
[379188665,1755180635959,-151.0,0.00026487,2]
[379188667,1755180635970,-151.0,0.00026487,2]
[379188669,1755180635981,-500.0,0.00026487,2]
[379188671,1755180635991,-183.29524692,0.00026487,2]
[379188674,1755180636001,-500.0,0.00026487,2]
[379188676,1755180636011,-500.0,0.00026487,2]
[379188678,1755180636020,-500.0,0.00026487,2]
[379188680,1755180636030,-500.0,0.00026487,2]
[379188682,1755180636040,-9274.81107495,0.00026487,2]
[379188684,1755180636050,-500.0,0.00026487,2]
[379188686,1755180636060,-500.0,0.00026487,2]
[379188688,1755180636069,-500.0,0.00026487,2]
[379188690,1755180636080,-151.0,0.00026487,2]
[379188692,1755180636090,-500.0,0.00026487,2]
[379188694,1755180636100,-500.0,0.00026487,2]
[379188696,1755180636109,-500.0,0.00026487,2]
[379188698,1755180636119,-3000.0,0.00026487,2]
[379188700,1755180636129,-3000.0,0.00026487,2]
[379188702,1755180636139,-3000.0,0.00026487,2]
[379188704,1755180636149,-3000.0,0.00026487,2]
[379188706,1755180636158,-3000.0,0.00026487,2]
[379188708,1755180636168,-3000.0,0.00026487,2]
[379188710,1755180636181,-3000.0,0.00026487,2]
[379188712,1755180636191,-3000.0,0.00026487,2]
[379188714,1755180636201,-3000.0,0.00026487,2]
[379188716,1755180636210,-318.01602228,0.00026487,2]
[379188718,1755180636221,-500.0,0.00026487,2]
[379188720,1755180636230,-500.0,0.00026487,2]
[379188722,1755180636240,-500.0,0.00026487,2]
[379188725,1755180636251,-500.0,0.00026487,2]
[379188727,1755180636261,-500.0,0.00026487,2]
[379188729,1755180636276,-500.0,0.00026487,2]
[379188731,1755180636295,-500.0,0.00026487,2]
[379188733,1755180636313,-500.0,0.00026487,2]
[379188735,1755180636323,-500.0,0.00026487,2]
[379188737,1755180636332,-500.0,0.00026487,2]
[379188739,1755180636342,-500.0,0.00026487,2]
[379188741,1755180636352,-500.0,0.00026487,2]
[379188743,1755180636362,-500.0,0.00026487,2]
[379188745,1755180636372,-500.0,0.00026487,2]
[379188747,1755180636381,-500.0,0.00026487,2]
[379188749,1755180636393,-500.0,0.00026487,2]
[379188751,1755180636403,-500.0,0.00026487,2]
[379188753,1755180636413,-500.0,0.00026487,2]
[379188755,1755180636425,-500.0,0.00026487,2]
[379188758,1755180636434,-500.0,0.00026487,2]
[379188760,1755180636444,-500.0,0.00026487,2]
[379188762,1755180636453,-500.0,0.00026487,2]
[379188764,1755180636463,-2500.0,0.00026487,2]
[379188766,1755180636472,-2500.0,0.00026487,2]
[379188768,1755180636482,-2500.0,0.00026487,2]
[379188770,1755180636491,-2500.0,0.00026487,2]
[379188772,1755180636501,-2500.0,0.00026487,2]
[379188774,1755180636510,-2500.0,0.00026487,2]
[379188776,1755180636520,-2500.0,0.00026487,2]
[379188778,1755180636530,-2500.0,0.00026487,2]
[379188780,1755180636539,-2500.0,0.00026487,2]
[379188782,1755180636550,-2500.0,0.00026487,2]
[379188784,1755180636560,-2500.0,0.00026487,2]
[379188786,1755180636570,-1000.0,0.00026487,2]
[379188788,1755180636579,-159.83472269,0.00026493,2]
[379188790,1755180636589,-400.0,0.000265,9]
[379188792,1755180636599,-300.0,0.00026517,2]
[379188794,1755180636608,-9667.74137634,0.00026522,2]
[379188796,1755180636618,-1000.0,0.00026531,2]
[379188798,1755180636630,-11250.4118807,0.00026532,2]
[379188800,1755180636640,-9617.97908473,0.00026542,2]
[379188803,1755180636650,-703.47844134,0.00026548,2]
[379188805,1755180636659,-191.97148911,0.00026548,2]
[379188807,1755180636670,-838.14897401,0.00026556,2]
[379188809,1755180636684,-150.0,0.00026577,2]
[379188811,1755180636694,-9667.74137634,0.00026582,2]
[379188813,1755180636706,-732.48722125,0.00026583,2]
[379188815,1755180636716,-9667.74137634,0.00026587,2]
[379188817,1755180636725,-1000.0,0.00026587,2]
[379188819,1755180636735,-9999.99,0.00026591,2]
[379188821,1755180636744,-150.99,0.00026591,2]
[379188823,1755180636754,-299.99,0.00026591,12]
[379188825,1755180636765,-1508.96,0.00026591,2]
[379188827,1755180636775,-3952.36,0.00026591,2]
[379188829,1755180636785,-414.46,0.00026591,2]
[379188831,1755180636795,-8288.38,0.00026591,2]
[379188833,1755180636805,-3222.83,0.00026591,2]
[379188835,1755180636815,-999.99,0.00026591,2]
[379188837,1755180636824,-1357.28,0.00026591,2]
[379188839,1755180636833,-1677.31,0.00026591,2]
[379188841,1755180636843,-499.99,0.00026591,2]
[379188843,1755180636852,-150.99,0.00026591,2]
[379188845,1755180636862,-7747.01891237,0.00026594,2]
[379188847,1755180636871,-9973.84431086,0.00026597,2]
[379188849,1755180636880,-900.0,0.000266,9]
[379188851,1755180636890,-1000.0,0.00026601,2]
[379188853,1755180636900,-150.0,0.00026602,2]
[379188855,1755180636910,-150.0,0.00026622,2]
[379188857,1755180636920,-1000.0,0.00026638,2]
[379188859,1755180636932,-11250.4118807,0.00026642,2]
[379188862,1755180636942,-9667.74137634,0.00026642,2]
[379188864,1755180636951,-220.8783568,0.00026646,2]
[379188866,1755180636961,-150.0,0.00026648,2]
[379188868,1755180636970,-150.0,0.00026648,2]
[379188870,1755180636980,-10342.87655036,0.00026652,2]
[379188872,1755180636989,-1000.0,0.00026666,2]
[379188874,1755180636999,-236.56,0.00026676,2]
[379188876,1755180637009,-9667.74137634,0.0002669,2]
[379188878,1755180637018,-150.0,0.00026697,2]
[379188880,1755180637028,-11250.4118807,0.00026697,2]
[379188882,1755180637038,-776.12475783,0.00026698,2]
[379188884,1755180637048,-752.67007,0.000267,2]
[379188886,1755180637057,-1400.0,0.000267,9]
[379188888,1755180637068,-320.42235023,0.000267,2]
[379188890,1755180637079,-1000.0,0.00026706,2]
[379188892,1755180637089,-172.23,0.00026706,2]
[379188894,1755180637099,-10725.56298273,0.00026707,2]
[379188896,1755180637109,-869.0,0.0002673,2]
[379188898,1755180637119,-150.0,0.00026735,2]
[379188900,1755180637128,-1000.0,0.00026742,2]
[379188902,1755180637138,-9667.74137634,0.00026752,2]
[379188904,1755180637147,-158.43363361,0.00026759,2]
[379188906,1755180637157,-11122.40881309,0.00026762,2]
[379188908,1755180637166,-838.14897401,0.00026773,2]
[379188911,1755180637179,-1000.0,0.00026784,2]
[379188913,1755180637189,-11250.4118807,0.0002679,2]
[379188915,1755180637200,-9667.74137634,0.0002679,2]
[379188917,1755180637209,-1900.0,0.000268,9]
[379188919,1755180637219,-150.0,0.0002681,2]
[379188921,1755180637229,-819.76229442,0.00026813,2]
[379188923,1755180637239,-1000.0,0.00026815,2]
[379188925,1755180637251,-11533.93793917,0.00026817,2]
[379188927,1755180637261,-9667.74137634,0.00026862,2]
[379188929,1755180637271,-150.0,0.00026872,2]
[379188931,1755180637281,-11960.69364292,0.00026872,2]
[379188933,1755180637290,-7747.01891237,0.00026874,2]
[379188935,1755180637300,-220.8783568,0.00026885,2]
[379188937,1755180637310,-11250.4118807,0.0002689,2]
[379188939,1755180637320,-9667.74137634,0.0002689,2]
[379188941,1755180637330,-2400.0,0.000269,9]
[379188943,1755180637340,-150.0,0.00026902,2]
[379188945,1755180637349,-239.23952444,0.00026914,2]
[379188947,1755180637360,-9667.74137634,0.00026919,2]
[379188950,1755180637370,-150.0,0.00026921,2]
[379188952,1755180637379,-12403.23930771,0.00026927,2]
[379188954,1755180637389,-863.399831,0.00026928,2]
[379188956,1755180637398,-6695.96582749,0.00026929,2]
[379188958,1755180637408,-11250.4118807,0.00026952,2]
[379188959,1755180637417,-150.0,0.00026971,2]
[379188962,1755180637428,-9667.74137634,0.00026972,2]
[379188963,1755180637438,-12862.1591621,0.00026982,2]
[379188966,1755180637448,-150.0,0.00026988,2]
[379188968,1755180637457,-1000.0,0.00026999,2]
[379188970,1755180637467,-360.51400875,0.00027,30]
[379188972,1755180637477,-597.64009142,0.00027,30]
[379188974,1755180637486,-461.38609621,0.00027,30]
[379188976,1755180637495,-875.17878704,0.00027,30]
[379188978,1755180637505,-500.0,0.00027,30]
[379188980,1755180637514,-211.86673127,0.00027,3]
[379188982,1755180637526,-458.13769775,0.00027,3]
[379188984,1755180637536,-9667.74137634,0.00027007,2]
[379188986,1755180637546,-11250.4118807,0.00027017,2]
[379188988,1755180637555,-150.0,0.00027029,2]
[379188990,1755180637565,-151.0,0.00027035,2]
[379188992,1755180637574,-151.0,0.00027035,2]
[379188994,1755180637585,-600.0,0.00027035,2]
[379188996,1755180637594,-151.0,0.00027035,2]
[379188998,1755180637606,-13338.05905109,0.00027037,2]
[379189000,1755180637615,-907.03736759,0.00027042,2]
[379189002,1755180637627,-9667.74137634,0.00027044,2]
[379189004,1755180637638,-150.0,0.00027049,2]
[379189006,1755180637647,-150.0,0.00027054,2]
[379189008,1755180637657,-1000.0,0.00027054,2]
[379189010,1755180637667,-150.0,0.0002706,2]
[379189012,1755180637678,-150.0,0.00027073,2]
[379189014,1755180637687,-150.0,0.00027078,2]
[379189016,1755180637697,-838.14897401,0.00027095,2]
[379189018,1755180637709,-150.0,0.00027097,2]
[379189020,1755180637719,-159.83472269,0.000271,2]
[379189022,1755180637729,-150.0,0.00027108,2]
[379189024,1755180637738,-150.0,0.0002711,2]
[379189026,1755180637748,-150.0,0.00027114,2]
[379189028,1755180637758,-150.0,0.00027123,2]
[379189030,1755180637768,-3597.81,0.00027123,2]
[379189032,1755180637777,-220.8783568,0.00027125,2]
[379189034,1755180637786,-150.0,0.0002713,2]
[379189036,1755180637796,-160.0,0.00027151,23]
[379189038,1755180637805,-7747.01891237,0.00027154,2]
[379189040,1755180637815,-950.67490417,0.00027157,2]
[379189042,1755180637825,-150.0,0.00027158,2]
[379189044,1755180637834,-838.14897401,0.0002717,2]
[379189047,1755180637844,-150.0,0.00027173,2]
[379189048,1755180637854,-163.45202941,0.00027177,2]
[379189051,1755180637863,-492.0,0.00027185,7]
[379189053,1755180637873,-150.0,0.00027189,2]
[379189055,1755180637883,-150.0,0.00027191,2]
[379189057,1755180637892,-150.0,0.00027192,2]
[379189059,1755180637902,-9667.74137634,0.00027193,2]
[379189061,1755180637913,-11250.4118807,0.00027198,2]
[379189063,1755180637925,-150.0,0.00027203,2]
[379189065,1755180637935,-626.18790236,0.00027203,2]
[379189067,1755180637945,-9667.74137634,0.00027218,2]
[379189069,1755180637955,-11250.4118807,0.00027218,2]
[379189071,1755180637965,-150.0,0.00027224,2]
[379189073,1755180637974,-8215.43404865,0.00027228,2]
[379189075,1755180637984,-1000.0,0.00027233,2]
[379189115,1755180638359,-150.0,0.00027238,2]
[379189118,1755180638371,-150.0,0.00027245,2]
[379189120,1755180638380,-150.0,0.0002725,2]
[379189122,1755180638390,-1000.0,0.00027254,2]
[379189124,1755180638400,-150.0,0.00027259,2]
[379189126,1755180638409,-468.3,0.0002726,2]
[379189128,1755180638419,-9667.74137634,0.0002726,2]
[379189130,1755180638432,-150.0,0.00027261,2]
[379189132,1755180638442,-11250.4118807,0.00027267,2]
[379189134,1755180638451,-150.0,0.00027268,2]
[379189136,1755180638461,-11250.4118807,0.0002727,2]
[379189138,1755180638471,-994.31244075,0.00027272,2]
[379189140,1755180638480,-11250.4118807,0.00027277,2]
[379189142,1755180638490,-19335.4827527,0.00027277,2]
[379189144,1755180638499,-150.0,0.00027279,2]
[379189146,1755180638509,-150.0,0.00027284,2]
[379189148,1755180638519,-2845.9790822,0.00027287,2]
[379189466,1755180642430,-500.0,0.00021781,2]
[379189468,1755180642440,-500.0,0.00021781,2]
[379189470,1755180642450,-182.0,0.00021781,2]
[379189474,1755180642466,-21.43848194,0.00021781,2]
[379189476,1755180642475,-1276.0240167,0.00027287,2]
[379189478,1755180642486,-1900.0,0.00027287,2]
[379189481,1755180642498,-6469.50568828,0.00027287,2]
[379189483,1755180642508,-19845.59090944,0.00027287,2]
[379189488,1755180642527,-2194.95150338,0.00027287,2]
[379189490,1755180642537,-1000.0,0.00027287,2]
[379189492,1755180642546,-9667.74137634,0.00027288,2]
[379189494,1755180642557,-168.93204715,0.00027293,2]
[379189496,1755180642567,-541.98995907,0.00027297,2]
[379189498,1755180642576,-11250.4118807,0.00027297,2]
[379189500,1755180642585,-173.0,0.000273,14]
[379189503,1755180642596,-1000.0,0.000273,2]
[379189505,1755180642606,-1786.36,0.000273,2]
[379189507,1755180642615,-96.76734236,0.00027303,2]
[379189509,1755180642627,-903.23265764,0.00027303,2]
[379189511,1755180642636,-150.0,0.00027303,2]
[379189513,1755180642646,-150.0,0.0002731,2]
[379189514,1755180642658,-150.0,0.00027328,2]
[379189516,1755180642667,-626.18790231,0.00027333,2]
[379189518,1755180642677,-150.0,0.00027337,2]
[379189520,1755180642687,-468.3,0.00027342,2]
[379189522,1755180642696,-136.41421995,0.00027342,2]
[379189525,1755180642710,-331.88578005,0.00027342,2]
[379189527,1755180642720,-2282.28724837,0.00027343,2]
[379189531,1755180642753,-7385.45412797,0.00027343,2]
[379189533,1755180642762,-150.0,0.00027352,2]
[379189535,1755180642772,-11250.4118807,0.00027357,2]
[379189537,1755180642781,-29003.224129,0.00027357,2]
[379189539,1755180642791,-150.0,0.00027362,2]
[379189541,1755180642801,-220.8783568,0.00027365,2]
[379189543,1755180642811,-500.0,0.00027373,2]
[379189545,1755180642820,-500.0,0.00027373,2]
[379189547,1755180642830,-500.0,0.00027373,2]
[379189549,1755180642840,-500.0,0.00027373,2]
[379189551,1755180642849,-500.0,0.00027373,2]
[379189553,1755180642859,-500.0,0.00027373,2]
[379189555,1755180642869,-500.0,0.00027373,2]
[379189557,1755180642879,-561.85515419,0.00027373,2]
[379189559,1755180642888,-500.0,0.00027373,2]
[379189561,1755180642898,-500.0,0.00027373,2]
[379189563,1755180642909,-159.53260958,0.00027373,2]
[379189565,1755180642919,-500.0,0.00027373,2]
[379189567,1755180642928,-500.0,0.00027373,2]
[379189568,1755180642939,-500.0,0.00027373,2]
[379189570,1755180642949,-500.0,0.00027373,2]
[379189572,1755180642959,-500.0,0.00027373,2]
[379189574,1755180642969,-9667.74137634,0.00027377,2]
[379189576,1755180642979,-150.0,0.00027377,2]
[379189577,1755180642989,-150.0,0.00027378,2]
[379189578,1755180642998,-541.98995902,0.00027379,2]
[379189579,1755180643008,-150.0,0.00027384,2]
[379189580,1755180643018,-150.0,0.00027386,2]
[379189581,1755180643028,-1037.94997732,0.00027387,2]
[379189582,1755180643038,-150.0,0.00027394,2]
[379189583,1755180643048,-300.0,0.00027396,10]
[379189584,1755180643058,-300.0,0.00027396,10]
[379189585,1755180643068,-300.0,0.00027396,10]
[379189586,1755180643078,-995.81063004,0.00027397,2]
[379189587,1755180643088,-151.0,0.00027397,7]
[379189588,1755180643098,-184.476015,0.00027397,7]
[379189589,1755180643108,-400.0,0.00027397,2]
[379189590,1755180643118,-184.476015,0.00027397,7]
[379189591,1755180643128,-323.847299,0.00027397,7]
[379189592,1755180643139,-151.0,0.00027397,7]
[379189593,1755180643150,-323.847299,0.00027397,7]
[379189594,1755180643161,-151.0,0.00027397,7]
[379189596,1755180643171,-340.0,0.00027397,2]
[379189598,1755180643183,-198.583333,0.00027397,7]
[379189600,1755180643192,-198.583333,0.00027397,7]
[379189602,1755180643203,-400.0,0.00027397,2]
[379189604,1755180643215,-488.24,0.00027397,2]
[379189607,1755180643226,-400.0,0.00027397,2]
[379189610,1755180643236,-1047.43,0.00027397,2]
[379189614,1755180643247,-400.0,0.00027397,2]
[379189618,1755180643257,-151.0,0.00027397,7]
[379189621,1755180643267,-400.0,0.00027397,2]
[379189624,1755180643277,-1652.29,0.00027397,2]
[379189626,1755180643287,-1581.42,0.00027397,2]
[379189627,1755180643297,-1625.64,0.00027397,2]
[379189628,1755180643308,-987.8,0.00027397,2]
[379189629,1755180643318,-1818.26,0.00027397,2]
[379189630,1755180643328,-1842.78,0.00027397,2]
[379189631,1755180643338,-400.0,0.00027397,2]
[379189632,1755180643348,-389.45197762,0.00027397,2]
[379189633,1755180643358,-400.0,0.00027397,2]
[379189634,1755180643368,-400.0,0.00027397,2]
[379189635,1755180643377,-664.15,0.00027397,2]
[379189636,1755180643387,-1600.38,0.00027397,2]
[379189637,1755180643397,-3164.74,0.00027397,2]
[379189638,1755180643407,-885.53,0.00027397,2]
[379189639,1755180643417,-400.0,0.00027397,2]
[379189640,1755180643428,-500.0,0.00027397,10]
[379189641,1755180643438,-1093.27,0.00027397,2]
[379189642,1755180643447,-1019.84,0.00027397,2]
[379189643,1755180643457,-1178.21,0.00027397,2]
[379189644,1755180643467,-151.0,0.00027397,7]
[379189645,1755180643477,-400.0,0.00027397,2]
[379189646,1755180643487,-554.2,0.00027397,2]
[379189647,1755180643497,-400.0,0.00027397,2]
[379189648,1755180643508,-1306.7,0.00027397,2]
[379189649,1755180643518,-400.0,0.00027397,2]
[379189650,1755180643528,-400.0,0.00027397,2]
[379189651,1755180643538,-424.13,0.00027397,2]
[379189652,1755180643552,-400.0,0.00027397,2]
[379189653,1755180643561,-400.0,0.00027397,2]
[379189654,1755180643571,-400.0,0.00027397,2]
[379189655,1755180643582,-156.262019,0.00027397,7]
[379189656,1755180643592,-1238.16,0.00027397,2]
[379189657,1755180643602,-156.262019,0.00027397,7]
[379189658,1755180643612,-400.0,0.00027397,2]
[379189659,1755180643622,-886.48,0.00027397,2]
[379189660,1755180643634,-620.16,0.00027397,2]
[379189661,1755180643644,-400.0,0.00027397,2]
[379189662,1755180643653,-400.0,0.00027397,2]
[379189663,1755180643663,-409.11,0.00027397,2]
[379189664,1755180643674,-400.0,0.00027397,2]